bitfinex/quotes_ETHUSD_20260108
["timestamp","ask_amount","ask_price","bid_price","bid_amount"]
[1767895325527,0.9802301,3133.5,3132.8,0.001]
[1767895325732,0.9782301,3133.4,3132.8,0.001]
[1767895325930,0.38350516,3133.4,3132.8,0.99385535]
[1767895326126,0.002,3133.5,3132.8,0.99385535]
[1767895326366,0.002,3133.5,3132.8,0.001]
[1767895327070,0.002,3133.8,3133.4,2.85482146]
[1767895327255,0.002,3133.8,3133.3,0.97257982]
[1767895327571,0.002,3133.8,3132.9,0.837]
[1767895327572,2.85682146,3133.8,3132.9,0.837]
[1767895327779,0.38350516,3133.7,3132.9,0.837]
[1767895327937,2.85482146,3133.6,3132.9,0.837]
[1767895328474,3.83305156,3133.6,3132.8,0.001]
[1767895328680,2.85482146,3133.4,3132.6,0.837]
[1767895328834,3.83305156,3133.6,3132.6,0.837]
[1767895329036,7.35536403,3133.5,3132.6,0.837]
[1767895329235,1.02101855,3133.4,3132.6,0.837]
[1767895329888,2.85482146,3133.2,3132.6,0.837]
[1767895330059,2.85482146,3132.7,3131.9,0.83400493]
[1767895330364,2.85482146,3132.9,3131.9,0.83400493]
[1767895330573,0.38275463,3132.8,3131.9,0.83400493]
[1767895330757,0.97272481,3133.3,3132.3,3.77380731]
[1767895331138,6.38325034,3133.2,3132.4,0.91898585]
[1767895331338,0.97272481,3133.1,3132.2,3.19262672]
[1767895331538,3.19162517,3133.2,3132.3,4.11149505]
[1767895331838,3.19162517,3133.2,3132.4,0.91898585]
[1767895332364,3.71016202,3133.2,3132.4,0.91898585]
[1767895332540,10.72933346,3133.2,3132.1,4.11168435]
[1767895332745,10.72933346,3133.2,3132.1,4.94868435]
[1767895333765,0.97272481,3133.1,3132.1,1.75598585]
[1767895334259,0.97272481,3133.1,3132.1,4.94872629]
[1767895334434,0.97272481,3133.1,3132.2,0.78035478]
[1767895335268,2.85482146,3133.0,3132.1,1.75598585]
[1767895335567,0.97272481,3132.7,3131.9,0.837]
[1767895335750,4.1646556,3132.9,3132.0,4.11177353]
[1767895336283,7.35658639,3132.9,3132.0,0.91898585]
[1767895336585,7.35658639,3132.9,3132.0,0.91798782]
[1767895336782,1.02114079,3132.8,3131.9,0.837]
[1767895337351,1.02114079,3132.8,3131.6,3.19422827]
[1767895337352,0.97272481,3132.7,3131.6,0.001]
[1767895337556,0.97272481,3132.7,3131.7,0.91898585]
[1767895337557,3.19223648,3132.6,3131.7,0.91898585]
[1767895337851,3.19208179,3132.8,3132.2,3.77380731]
[1767895338050,0.31920818,3132.7,3132.2,3.77380731]
[1767895338282,0.31920818,3132.7,3132.2,0.91898585]
[1767895338457,1.49126166,3133.2,3132.2,0.91898585]
[1767895338655,3.19172704,3133.1,3132.2,3.77380731]
[1767895339060,0.97272481,3133.5,3132.6,2.85482146]
[1767895339259,3.19130344,3133.6,3132.7,0.91898585]
[1767895339474,0.97472481,3133.8,3132.7,4.11112043]
[1767895339475,0.31913034,3133.5,3132.7,4.11112043]
[1767895339720,3.19111593,3133.7,3132.8,0.91898585]
[1767895339997,6.38223186,3133.7,3132.8,0.91898585]
[1767895346593,7.35495667,3133.7,3132.8,0.91898585]
[1767895347098,0.97272481,3133.5,3132.6,0.91898585]
[1767895347294,0.97272481,3133.5,3132.7,0.838]
[1767895347500,0.38275463,3133.4,3132.7,0.838]
[1767895347693,0.38275463,3133.4,3132.7,1.75698585]
[1767895348499,3.57427509,3133.4,3132.7,1.75698585]
[1767895350205,0.97272481,3133.1,3132.3,0.91898585]
[1767895350571,4.16454481,3133.1,3132.3,0.91898585]
[1767895350999,3.19182,3133.1,3132.4,0.91898585]
[1767895351368,0.77405204,3133.3,3132.5,0.91898585]
[1767895351675,3.19343123,3133.4,3132.7,0.91898585]
[1767895352406,3.19343123,3133.4,3132.7,0.95090717]
[1767895352608,6.38486246,3133.4,3132.7,0.91898585]
[1767895354620,7.35173851,3133.4,3132.4,0.99524191]
[1767895354901,10.20655997,3133.4,3132.4,0.99524191]
[1767895355076,0.96687605,3133.2,3132.4,0.99524191]
[1767895356604,3.19172704,3133.1,3132.4,0.99524191]
[1767895358278,4.15853846,3133.2,3132.5,0.03192338]
[1767895358594,3.19166241,3133.2,3132.6,0.99524191]
[1767895360107,4.15853846,3133.2,3132.4,0.99524191]
[1767895360412,0.96687605,3133.1,3132.3,3.19249681]
[1767895360707,4.15868513,3133.1,3132.3,4.18773872]
[1767895361207,0.96687605,3133.0,3132.2,0.03192644]
[1767895361504,0.96687605,3132.9,3132.0,0.99524191]
[1767895361916,0.96687605,3132.9,3132.1,0.99524191]
[1767895362110,1.70192547,3132.9,3132.1,0.99424389]
[1767895363992,7.35094141,3132.8,3131.8,0.99524191]
[1767895364306,4.15890873,3132.8,3131.8,1.02717242]
[1767895364681,3.19203268,3132.8,3132.1,0.99524191]
[1767895368874,6.38406536,3132.8,3132.1,0.99524191]
[1767895369075,0.96687605,3132.6,3131.7,0.99524191]
[1767895369494,0.71191148,3132.7,3132.0,0.99524191]
[1767895369688,4.15890873,3132.8,3132.1,0.99524191]
[1767895369689,3.19203268,3132.8,3132.1,0.99524191]
[1767895370415,0.002,3133.1,3132.6,0.99524191]
[1767895370577,0.002,3133.1,3132.6,1.02716426]
[1767895371218,0.002,3133.1,3132.6,0.99524191]
[1767895372241,0.96887605,3133.1,3132.0,0.99524191]
[1767895372507,3.19182891,3133.0,3132.1,5.05786534]
[1767895372709,4.15870496,3133.0,3132.1,5.05786534]
[1767895372907,4.15870496,3133.0,3132.1,9.07568224]
[1767895372908,0.96687605,3133.0,3132.1,9.07568224]
[1767895373211,3.19374086,3133.1,3132.2,0.99524191]
[1767895373407,6.38548172,3133.1,3132.2,0.99524191]
[1767895373618,3.19374086,3133.1,3132.2,0.99524191]
[1767895374393,3.19374086,3133.1,3132.3,0.03192542]
[1767895374609,3.92896649,3133.1,3132.3,3.22445243]
[1767895374814,3.92896649,3133.1,3132.2,4.18785239]
[1767895375183,3.92896649,3133.1,3132.3,3.2244522]
[1767895375424,3.92896649,3133.1,3132.3,0.03192542]
[1767895375731,0.96687605,3132.9,3131.7,4.18837147]
[1767895376025,0.96887605,3132.8,3131.9,4.18813027]
[1767895376987,0.002,3132.8,3132.0,0.99524191]
[1767895377434,0.002,3132.8,3132.3,0.99524191]
[1767895377659,0.002,3132.8,3132.2,2.85576238]
[1767895377660,0.002,3132.8,3132.4,0.99524191]
[1767895378845,0.002,3132.8,3132.4,0.89524191]
[1767895379041,0.002,3133.1,3132.5,0.99524191]
[1767895379344,0.002,3133.4,3132.7,0.99524191]
[1767895380238,3.19342914,3133.4,3132.7,0.99524191]
[1767895380459,0.002,3133.4,3132.7,0.99524191]
[1767895380958,0.002,3133.4,3132.7,1.1785661]
[1767895381479,0.002,3133.4,3132.7,4.3706772]
[1767895381876,0.002,3133.4,3132.7,1.1785661]
[1767895382065,0.96887605,3133.4,3132.4,1.37034234]
[1767895382267,0.96887605,3133.4,3132.5,3.19232335]
[1767895382575,0.002,3133.4,3132.8,0.90694922]
[1767895383347,0.97313587,3133.4,3132.4,3.19239256]
[1767895383577,0.97313587,3133.4,3132.3,0.838]
[1767895383776,0.97113587,3133.2,3132.2,4.09956831]
[1767895384256,0.97113587,3133.2,3132.3,3.22445871]
[1767895384654,0.97113587,3133.2,3132.3,0.93887464]
[1767895384860,0.97313587,3133.4,3132.6,3.19222826]
[1767895385155,0.002,3133.4,3132.7,0.90694922]
[1767895385360,4.01280719,3133.4,3132.7,0.90694922]
[1767895386269,8.12404567,3133.4,3132.5,0.99608245]
[1767895387259,4.93259562,3133.4,3132.5,4.18841227]
[1767895388553,4.01280719,3133.4,3132.5,6.3846682]
[1767895388758,4.01280719,3133.4,3132.6,0.99608245]
[1767895389360,0.72041359,3133.3,3132.6,0.99608245]
[1767895389591,0.72041359,3133.3,3132.6,4.18830685]
[1767895389792,3.91195332,3133.3,3132.6,0.99608245]
[1767895389979,4.83174175,3133.3,3132.4,3.19242338]
[1767895390175,0.002,3133.1,3132.4,4.02942338]
[1767895390384,0.002,3133.1,3132.5,3.19233435]
[1767895390786,0.002,3133.1,3132.4,5.1367863]
[1767895390958,0.002,3133.1,3132.6,3.19222414]
[1767895391165,0.002,3133.1,3132.7,0.03192134]
[1767895391475,0.002,3133.1,3132.6,4.18830659]
[1767895391663,0.002,3133.1,3132.7,0.73806328]
[1767895392367,0.002,3133.4,3132.8,0.99608245]
[1767895392502,0.002,3133.7,3133.1,2.85576238]
[1767895392676,0.002,3133.7,3133.0,0.99608245]
[1767895392878,3.19312536,3133.7,3133.0,0.99608245]
[1767895393743,0.91978843,3133.6,3132.7,0.837]
[1767895394016,0.91978843,3133.5,3132.3,0.837]
[1767895394582,0.91978843,3133.5,3132.1,4.18876617]
[1767895394902,1.00653124,3133.5,3132.2,0.837]
[1767895395102,0.91978843,3133.2,3131.9,4.18898046]
[1767895395303,0.91978843,3132.9,3131.7,0.99608245]
[1767895395509,0.91978843,3132.9,3131.8,0.837]
[1767895395692,0.91978843,3132.7,3131.8,4.03001088]
[1767895396197,0.91978843,3132.7,3131.6,0.838]
[1767895396400,0.91978843,3132.7,3131.6,4.03120083]
[1767895396700,0.91978843,3132.5,3131.7,3.19312916]
[1767895397082,0.91978843,3132.5,3131.6,3.19423933]
[1767895397282,0.91978843,3132.5,3131.6,0.838]
[1767895397489,0.91978843,3132.5,3131.6,4.03123663]
[1767895397886,4.11222873,3132.4,3131.6,0.838]
[1767895398223,0.91978843,3132.4,3131.6,3.19424986]
[1767895398386,1.65017381,3132.6,3131.7,0.99608245]
[1767895398585,0.91978843,3132.8,3131.8,1.02801296]
[1767895398786,4.1118265,3132.8,3131.9,0.99608245]
[1767895399019,4.1118265,3132.8,3131.6,7.2127601]
[1767895399020,0.91978843,3132.7,3132.0,0.03192848]
[1767895399199,0.91978843,3132.7,3131.7,0.838]
[1767895399498,3.19203807,3132.8,3131.8,0.99608245]
[1767895399789,7.1144523,3132.8,3131.9,0.99608245]
[1767895400483,8.03424073,3132.8,3131.8,1.11092821]
[1767895400684,8.03424073,3132.8,3131.7,6.9188144]
[1767895400685,0.91978843,3132.7,3131.7,4.03112049]
[1767895400887,0.91978843,3132.7,3131.7,0.838]
[1767895401526,0.91978843,3132.7,3131.6,0.001]
[1767895401699,0.91978843,3132.5,3131.6,0.839]
[1767895402531,3.1924403,3132.4,3131.6,0.001]
[1767895402833,3.1924403,3132.4,3131.6,0.839]
[1767895403333,3.19237766,3132.5,3131.7,0.99608245]
[1767895404007,4.11216609,3132.5,3131.6,2.85676238]
[1767895404239,7.30454375,3132.5,3131.6,3.78111231]
[1767895404761,3.99569599,3132.6,3131.7,1.02801398]
[1767895405248,3.19218422,3132.7,3131.7,1.02801398]
[1767895406351,0.91978843,3132.6,3131.7,1.02801398]
[1767895406530,4.11212681,3132.5,3131.7,3.22508444]
[1767895406918,3.19227571,3132.6,3131.7,4.22116689]
[1767895407122,3.19227571,3132.6,3131.8,0.99608245]
[1767895407753,4.11197209,3132.7,3131.8,0.99608245]
[1767895408047,0.91978843,3133.0,3131.9,1.02801194]
[1767895408208,6.38386158,3132.9,3131.9,1.02801194]
[1767895408951,0.91978843,3132.8,3131.8,0.83397558]
[1767895409247,0.91978843,3132.8,3131.8,3.19304895]
[1767895409545,0.91978843,3132.8,3131.8,4.18911034]
[1767895410005,0.91978843,3132.8,3131.9,3.19292166]
[1767895410212,6.38386158,3132.9,3132.0,1.02801093]
[1767895410528,3.19193079,3132.9,3132.0,1.02801093]
[1767895410742,6.38386158,3132.9,3132.1,0.7076695]
[1767895411033,6.38365782,3133.0,3132.1,0.7076695]
[1767895411264,7.30344625,3133.0,3132.0,0.99608245]
[1767895412229,4.11161734,3133.0,3132.1,4.15481164]
[1767895412435,0.002,3133.1,3132.5,3.81783161]
[1767895412673,0.002,3133.7,3132.9,0.96206923]
[1767895413281,0.002,3133.7,3133.0,3.19182891]
[1767895413443,0.002,3133.7,3133.1,4.23322142]
[1767895415080,0.002,3133.7,3133.2,0.96206923]
[1767895415242,0.98967612,3134.5,3133.4,2.85576238]
[1767895415243,3.19240326,3134.4,3133.4,2.85576238]
[1767895415435,6.38280652,3134.4,3133.4,3.81783161]
[1767895415628,6.38280652,3134.4,3133.5,0.70093549]
[1767895416435,7.37248264,3134.4,3133.4,0.96206923]
[1767895416631,7.37248264,3134.4,3133.2,3.19157623]
[1767895416632,0.98967612,3134.3,3133.2,3.19157623]
[1767895416881,0.98967612,3134.3,3133.1,1.37745904]
[1767895417062,0.99167612,3134.3,3133.2,0.838]
[1767895417383,0.98967612,3134.1,3133.2,0.838]
[1767895417567,0.98967612,3134.1,3133.2,1.37871288]
[1767895418682,3.19060685,3134.2,3133.2,8.72397598]
[1767895418887,3.19060685,3134.2,3133.2,5.53235081]
[1767895419244,3.19250505,3134.3,3133.3,0.96206923]
[1767895419786,6.3830101,3134.3,3133.3,0.96206923]
[1767895420081,7.12047872,3134.3,3133.4,3.81783161]
[1767895420240,3.92997367,3134.3,3133.6,0.5]
[1767895420957,7.12047872,3134.3,3133.6,0.5]
[1767895424363,8.11015484,3134.3,3133.6,0.5]
[1767895424564,0.98967612,3134.2,3133.6,0.5]
[1767895425378,1.8008916,3134.2,3133.6,0.5]
[1767895425879,1.8008916,3134.2,3132.5,6.04584482]
[1767895425880,0.98967612,3133.7,3132.7,0.96206923]
[1767895426175,0.98967612,3133.7,3132.8,3.81564707]
[1767895426486,0.98967612,3133.7,3132.7,4.02908089]
[1767895426487,6.38162092,3134.0,3133.2,2.85357784]
[1767895426776,3.19081046,3134.0,3133.4,2.85357784]
[1767895426945,0.638154,3133.9,3133.2,0.96206923]
[1767895427354,0.98967612,3133.7,3132.6,0.96206923]
[1767895427656,0.98967612,3133.7,3132.6,1.79906923]
[1767895428673,7.37211164,3133.6,3132.7,2.85357784]
[1767895428848,3.19121776,3133.6,3132.9,2.85357784]
[1767895429250,6.38243552,3133.6,3132.9,2.85357784]
[1767895429456,7.02067907,3133.6,3132.9,2.85357784]
[1767895429676,7.02067907,3133.6,3133.1,0.001]
[1767895430675,3.82946131,3133.6,3133.1,0.001]
[1767895432284,0.63824355,3133.6,3133.1,0.001]
[1767895432480,1.64921548,3134.2,3133.3,3.81564707]
[1767895432682,1.64921548,3134.2,3133.4,0.03191421]
[1767895432683,6.38142776,3134.1,3133.4,0.03191421]
[1767895432984,3.19070865,3134.1,3133.4,0.99398344]
[1767895433383,0.98967612,3133.6,3133.1,0.001]
[1767895433764,0.98967612,3133.4,3133.1,0.001]
[1767895434083,1.37400152,3133.3,3133.1,0.001]
[1767895434288,1.37400152,3133.3,3132.3,0.96206923]
[1767895434488,0.98967612,3133.3,3132.3,0.96206923]
[1767895434688,3.19162517,3133.2,3132.3,4.15456085]
[1767895434984,3.19147578,3133.4,3132.6,3.81564707]
[1767895435280,3.19147578,3133.4,3132.7,0.96206923]
[1767895436787,6.38282299,3133.5,3132.7,0.96206923]
[1767895436988,7.1200729,3133.5,3132.7,0.96206923]
[1767895437183,7.1200729,3133.5,3132.4,0.0319244]
[1767895437184,8.10974902,3133.5,3132.4,0.96206923]
[1767895437415,8.10974902,3133.5,3132.5,0.03192338]
[1767895438454,8.10974902,3133.5,3132.6,0.96206923]
[1767895439054,0.98967612,3133.4,3132.5,0.03192338]
[1767895439259,0.98967612,3133.4,3132.6,0.32243057]
[1767895439487,0.98967612,3133.4,3132.3,0.96206923]
[1767895440963,7.37272274,3133.3,3132.3,0.96206923]
[1767895441973,7.37272274,3133.3,3132.8,0.001]
[1767895442174,0.98967612,3133.2,3132.8,0.001]
[1767895442406,4.76659457,3133.5,3132.8,0.001]
[1767895442407,3.19146076,3133.4,3132.8,0.001]
[1767895442591,6.38292152,3133.4,3132.8,0.001]
[1767895442761,8.16966156,3133.4,3132.8,0.001]
[1767895443299,0.97702082,3133.3,3132.8,0.001]
[1767895443663,0.97702082,3133.3,3132.3,0.93590704]
[1767895444396,0.97702082,3133.3,3132.2,3.19364393]
[1767895444966,0.97702082,3133.3,3132.2,0.93690704]
[1767895445165,3.19172704,3133.1,3132.2,4.62935642]
[1767895445766,4.16868109,3133.2,3132.3,0.99959894]
[1767895446295,4.16868109,3133.2,3132.3,0.96767352]
[1767895446974,4.16868109,3133.2,3132.3,0.99959894]
[1767895447179,4.16868109,3133.2,3132.3,4.16018456]
[1767895447384,4.16868109,3133.2,3132.3,4.94556124]
[1767895447584,4.16868109,3133.2,3132.4,0.0319244]
[1767895447899,4.17869883,3133.5,3132.4,0.99959792]
[1767895448196,0.98737922,3133.4,3132.4,0.99959792]
[1767895449006,3.19131961,3133.5,3132.4,0.99959792]
[1767895449174,3.19131961,3133.5,3132.6,0.96767352]
[1767895449373,3.19131961,3133.5,3132.7,0.99959486]
[1767895449570,3.19131961,3133.5,3132.8,0.96767352]
[1767895449873,6.38265059,3133.5,3132.8,0.96767352]
[1767895450093,3.19131961,3133.5,3132.8,0.96767352]
[1767895450906,3.19116652,3133.7,3132.8,1.38684424]
[1767895451201,6.38233304,3133.7,3132.8,1.38684424]
[1767895451369,7.36971226,3133.7,3132.8,1.38684424]
[1767895451573,0.98737922,3133.6,3132.8,0.41917072]
[1767895451990,0.98737922,3133.6,3132.8,3.61119399]
[1767895452193,0.98737922,3133.6,3132.9,0.46107888]
[1767895452707,0.98737922,3133.6,3132.7,0.03192134]
[1767895452875,6.38233304,3133.7,3132.7,0.03192134]
[1767895452876,3.19116652,3133.7,3132.8,4.15969106]
[1767895453075,3.19116652,3133.7,3132.9,0.96767352]
[1767895453391,6.38233304,3133.7,3132.9,0.96767352]
[1767895453596,7.36971226,3133.7,3132.9,0.96767352]
[1767895454090,7.36971226,3133.7,3132.7,4.1597587]
[1767895454298,7.36971226,3133.7,3132.8,0.49967587]
[1767895454474,7.36971226,3133.7,3132.8,4.65936422]
[1767895455008,0.002,3133.3,3132.9,0.96767352]
[1767895455377,0.002,3133.3,3132.9,4.15960397]
[1767895455600,0.002,3133.3,3132.9,0.96767352]
[1767895455787,0.002,3133.3,3133.0,0.46593073]
[1767895456306,0.002,3133.3,3132.9,0.96767352]
[1767895457005,0.002,3133.3,3132.9,3.82235718]
[1767895457799,0.002,3133.3,3133.0,0.03191828]
[1767895457994,0.002,3133.3,3133.0,0.9995918]
[1767895458300,0.002,3133.6,3133.1,3.82235718]
[1767895458505,0.002,3133.6,3133.1,4.52378512]
[1767895460801,0.002,3133.6,3133.2,0.96767352]
[1767895460983,3.19086119,3134.0,3133.3,3.82235718]
[1767895461375,3.19074606,3134.1,3133.5,2.85468366]
[1767895461582,0.98737922,3134.2,3133.5,2.85468366]
[1767895461796,0.98737922,3134.2,3133.4,3.82235718]
[1767895462403,4.17802955,3134.2,3133.4,3.82235718]
[1767895462657,4.91528336,3134.2,3133.4,3.82235718]
[1767895462999,4.91528336,3134.2,3133.4,3.85427139]
[1767895463314,4.91528336,3134.2,3133.5,0.96767352]
[1767895464085,0.002,3134.3,3133.6,3.82235718]
[1767895464326,0.002,3134.3,3134.0,2.85468366]
[1767895464825,0.002,3134.3,3133.8,7.01327336]
[1767895465188,0.002,3134.3,3133.8,3.82235718]
[1767895465704,0.002,3135.0,3134.5,0.96767352]
[1767895465904,0.002,3135.9,3134.6,0.837]
[1767895465905,0.98937922,3135.2,3134.6,0.837]
[1767895466221,0.98937922,3135.2,3134.5,0.837]
[1767895466722,4.17898287,3135.2,3134.5,0.837]
[1767895467026,0.98937922,3135.2,3134.6,0.40273532]
[1767895467389,0.002,3135.2,3134.6,0.40273532]
[1767895468027,4.17903953,3135.2,3134.6,0.40273532]
[1767895468201,4.17903953,3135.2,3134.5,0.837]
[1767895468412,0.002,3135.2,3134.6,0.96767352]
[1767895468726,0.002,3135.2,3134.7,2.85468366]
[1767895470023,0.002,3135.2,3134.6,0.96767352]
[1767895470324,0.002,3135.2,3134.7,0.78496578]
[1767895471307,0.98737922,3135.1,3134.1,6.04533219]
[1767895471524,0.98737922,3135.1,3134.1,3.69168366]
[1767895471730,0.98737922,3135.1,3134.2,3.19053825]
[1767895471900,0.98737922,3135.1,3134.3,6.04518721]
[1767895472104,0.98737922,3135.1,3134.4,0.60451872]
[1767895472700,0.002,3135.2,3134.7,2.85468366]
[1767895472918,0.002,3135.2,3134.9,2.85468366]
[1767895473240,0.002,3135.2,3134.7,6.04478058]
[1767895473538,0.002,3135.2,3134.7,2.85468366]
[1767895473835,0.002,3135.2,3134.7,3.55322072]
[1767895474331,0.002,3135.2,3134.7,6.74329645]
[1767895474503,0.002,3135.2,3134.7,3.55322072]
[1767895475996,0.002,3135.2,3134.7,0.69853706]
[1767895476599,0.002,3135.2,3134.7,3.55322072]
[1767895476801,0.002,3135.2,3134.8,0.73766783]
[1767895477504,0.002,3135.2,3134.6,0.94052563]
[1767895477733,0.002,3135.2,3134.7,2.85468366]
[1767895479640,0.002,3135.2,3134.5,2.85468366]
[1767895479856,0.002,3135.2,3134.4,4.73541317]
[1767895479857,0.92598304,3135.2,3134.4,4.73541317]
[1767895480010,0.92598304,3135.2,3134.5,0.837]
[1767895480207,0.92598304,3135.2,3134.4,4.73541317]
[1767895480208,0.92398304,3134.9,3133.7,0.94052563]
[1767895480422,0.92398304,3134.5,3133.5,0.94052563]
[1767895480717,0.92398304,3134.5,3133.4,2.85568366]
[1767895480914,0.92398304,3134.3,3133.4,0.001]
[1767895481230,0.92398304,3134.3,3133.4,6.04706306]
[1767895481437,0.92398304,3134.3,3133.4,6.73546937]
[1767895481649,4.11458989,3134.2,3133.4,3.54408997]
[1767895482648,0.92398304,3134.2,3133.4,3.88082746]
[1767895483632,3.19070865,3134.1,3133.4,0.68940631]
[1767895483956,3.19070865,3134.1,3133.4,0.001]
[1767895483957,0.92398304,3134.0,3133.4,0.001]
[1767895484117,0.92398304,3133.8,3132.6,0.001]
[1767895485312,0.92398304,3133.6,3131.7,4.13366872]
[1767895485544,0.92398304,3133.6,3131.8,0.41246983]
[1767895486042,0.92398304,3133.4,3131.8,0.41246983]
[1767895486238,0.92398304,3133.2,3131.8,0.41246983]
[1767895487119,0.92398304,3133.2,3131.6,0.838]
[1767895487614,0.92398304,3133.2,3131.6,0.001]
[1767895487943,0.92398304,3133.0,3131.6,0.001]
[1767895489819,0.92398304,3132.5,3131.6,0.001]
[1767895490058,0.92398304,3132.4,3131.0,0.94052563]
[1767895490218,0.92398304,3132.2,3131.0,0.03193867]
[1767895490417,0.92398304,3132.2,3130.7,0.94052563]
[1767895490623,0.92398304,3132.2,3130.8,0.837]
[1767895490920,0.92398304,3132.2,3130.8,3.2260087]
[1767895491321,0.92398304,3132.2,3130.9,3.19393492]
[1767895491558,0.92398304,3132.2,3131.0,0.03193867]
[1767895492223,0.92398304,3132.0,3131.0,0.03193867]
[1767895493454,0.92398304,3132.0,3131.0,4.16632775]
[1767895493851,0.92398304,3132.0,3131.0,0.9724643]
[1767895494332,6.38589992,3131.9,3131.0,0.9724643]
[1767895494654,3.92393826,3131.9,3131.1,0.94052563]
[1767895494857,3.92393826,3131.9,3131.2,0.03193663]
[1767895495054,7.11688822,3131.9,3131.3,0.001]
[1767895495358,7.11688822,3131.9,3131.4,0.03193459]
[1767895495579,7.11688822,3131.9,3131.3,0.001]
[1767895495730,3.92393826,3131.9,3131.3,0.001]
[1767895496128,7.11688822,3131.9,3131.3,0.001]
[1767895496332,0.71168882,3131.8,3131.3,0.001]
[1767895496640,3.19315387,3131.7,3131.3,0.001]
[1767895498064,6.38630774,3131.7,3131.3,0.001]
[1767895498231,7.31029078,3131.7,3131.3,0.001]
[1767895498427,0.71168882,3131.8,3130.3,0.02695172]
[1767895498428,0.92398304,3131.4,3130.3,0.02695172]
[1767895498638,4.11683106,3132.0,3130.9,0.94052563]
[1767895498850,0.002,3132.1,3131.1,0.94052563]
[1767895499055,0.92398304,3132.0,3130.9,1.77852563]
[1767895499238,1.33585832,3132.0,3130.9,1.96505247]
[1767895499668,1.33585832,3132.0,3130.9,1.12705247]
[1767895499669,0.92398304,3131.9,3130.9,1.12705247]
[1767895499951,0.92398304,3131.9,3130.6,0.94052563]
[1767895500167,0.92398304,3131.9,3130.4,0.9566876]
[1767895500350,0.92398304,3131.9,3130.4,1.81047042]
[1767895500549,0.92398304,3131.7,3130.4,1.81047042]
[1767895500883,0.92398304,3131.5,3130.5,0.50917741]
[1767895501163,0.92398304,3131.5,3130.3,0.08674281]
[1767895501632,0.92398304,3131.5,3130.3,4.22181595]
[1767895501830,0.92398304,3131.5,3130.3,1.02726844]
[1767895502236,0.92398304,3131.5,3130.3,0.08674281]
[1767895502969,0.95955561,3131.3,3130.1,1.82635946]
[1767895503259,0.95955561,3131.1,3130.1,0.98835946]
[1767895503461,0.95955561,3131.1,3130.0,3.22674991]
[1767895503462,0.95955561,3131.1,3130.0,0.86994786]
[1767895503762,0.95955561,3131.1,3130.0,4.15153924]
[1767895503944,0.95955561,3131.1,3130.1,3.19475766]
[1767895504464,3.19345979,3131.4,3130.4,0.98835946]
[1767895504648,3.19297411,3131.9,3130.9,1.07510227]
[1767895504851,0.002,3132.1,3131.2,0.98835946]
[1767895505052,0.002,3132.1,3131.5,1.07510227]
[1767895505774,0.002,3132.1,3131.1,6.38753152]
[1767895505935,0.98579519,3132.1,3130.6,0.97589025]
[1767895506133,0.98579519,3132.1,3130.7,0.838]
[1767895506435,1.072538,3132.1,3130.7,0.838]
[1767895506633,1.072538,3132.1,3130.1,3.19471241]
[1767895506634,0.98379519,3131.6,3130.3,0.08674281]
[1767895506940,0.98379519,3131.2,3130.4,0.08674281]
[1767895508333,6.38712354,3131.3,3130.6,0.08674281]
[1767895508561,0.98379519,3131.2,3130.6,0.08674281]
[1767895508756,0.98379519,3131.2,3130.1,0.08674281]
[1767895508952,0.98379519,3131.0,3130.1,0.08674281]
[1767895509153,0.98379519,3131.0,3130.3,0.08674281]
[1767895510530,1.72092786,3131.0,3130.3,0.08674281]
[1767895510736,0.98379519,3130.9,3130.3,0.08674281]
[1767895511668,4.17784735,3130.9,3130.3,0.08674281]
[1767895511964,7.37189951,3130.9,3130.3,0.08674281]
[1767895512767,0.98379519,3130.8,3130.3,0.08674281]
[1767895512953,1.79469841,3130.8,3130.3,0.08674281]
[1767895513151,1.79469841,3130.8,3130.1,0.08674281]
[1767895514045,3.19417382,3130.7,3130.1,0.08674281]
[1767895514465,6.38834764,3130.7,3129.9,0.08674281]
[1767895514671,6.38834764,3130.7,3130.1,0.08674281]
[1767895514974,6.38834764,3130.7,3129.9,0.08674281]
[1767895514975,1.8020998,3130.6,3129.9,0.08674281]
[1767895515265,0.81830461,3130.6,3130.1,0.08674281]
[1767895515470,0.98379519,3131.4,3130.1,1.06263306]
[1767895515635,1.82179519,3131.3,3130.3,0.08674281]
[1767895515834,0.98379519,3131.2,3130.1,0.97589025]
[1767895516036,0.98379519,3131.0,3129.0,1.14216172]
[1767895516296,0.98379519,3131.0,3128.5,0.001]
[1767895516297,0.98379519,3131.0,3129.2,0.97589025]
[1767895516584,0.98379519,3130.8,3129.3,0.97589025]
[1767895516746,0.98379519,3130.6,3128.8,0.838]
[1767895516944,0.98379519,3130.6,3128.8,4.03404002]
[1767895517178,0.98379519,3130.6,3128.9,3.19597625]
[1767895517382,0.98379519,3130.6,3128.8,0.97589025]
[1767895517548,0.98379519,3130.4,3128.8,0.97589025]
[1767895517745,0.98379519,3130.4,3128.8,0.03196113]
[1767895518381,0.98379519,3130.2,3128.8,3.22802662]
[1767895518582,0.98379519,3130.0,3128.8,3.19606549]
[1767895519288,0.98379519,3130.0,3128.8,3.22802662]
[1767895519452,0.18217952,3129.9,3128.8,3.73221831]
[1767895519653,0.18217952,3129.9,3128.8,4.70810856]
[1767895520018,0.18217952,3129.9,3128.9,0.97589025]
[1767895520364,4.17850382,3130.2,3129.1,0.97589025]
[1767895520684,3.19447993,3130.4,3129.3,0.97589025]
[1767895520889,3.19447993,3130.4,3129.4,1.00784525]
[1767895521059,3.37656603,3130.5,3129.4,1.00784525]
[1767895521254,6.57095254,3130.5,3129.4,1.00784525]
[1767895521456,0.74089525,3130.4,3129.4,1.00784525]
[1767895521685,0.98379519,3130.3,3129.2,0.838]
[1767895521891,0.74089525,3130.4,3129.2,0.838]
[1767895522096,0.98379519,3131.0,3129.3,0.97589025]
[1767895522254,0.98379519,3131.0,3129.5,0.97589025]
[1767895522459,3.19396978,3130.9,3129.7,0.97589025]
[1767895522668,6.38797187,3130.9,3129.7,0.97589025]
[1767895522854,7.37176706,3130.9,3129.7,0.97589025]
[1767895523261,0.98379519,3130.8,3129.4,0.18138903]
[1767895523472,0.98379519,3130.6,3129.3,3.19552412]
[1767895523888,0.98379519,3130.6,3129.2,0.001]
[1767895524088,0.838,3130.5,3129.2,0.001]
[1767895524287,0.98379519,3130.4,3129.2,0.001]
[1767895524493,7.55513867,3130.3,3129.2,0.001]
[1767895524706,0.98379519,3130.2,3129.2,0.001]
[1767895525486,4.2147615,3130.3,3129.2,0.97689025]
[1767895525685,3.3767615,3130.3,3129.2,0.97689025]
[1767895526187,6.57134348,3130.3,3129.2,0.97689025]
[1767895526388,0.65713435,3130.2,3129.2,0.97689025]
[1767895526593,6.3895722,3130.1,3129.2,0.97689025]